[Event "44th Chess Olympiad Women 2022"]
[Site "Chennai"]
[Date "2022.07.30"]
[Round "2.8"]
[White "Klek, Hanna Marie"]
[Black "Guindy, Esmat Susanne"]
[Result "0-1"]
[WhiteElo "2366"]
[BlackElo "2097"]
[Annotator "TA"]
[PlyCount "168"]
[EventDate "2022.??.??"]
[TimeControl "60"]

{[%evp 14,168,26,8,95,2,46,0,10,8,25,40,35,22,29,0,12,7,63,64,55,46,52,0,0,-24,
0,0,0,-19,-19,-32,-28,-35,0,-56,-57,-83,-11,-15,-11,-11,-13,-15,0,-6,0,-7,0,0,
0,-14,0,-41,-32,-50,-50,-138,-123,-93,-57,-56,-56,-72,-68,-162,-163,-155,-162,
-159,-37,-385,-368,-654,-646,-631,-617,-601,-545,-804,-778,-654,-650,-1545,
-1530,-29959,-29959,-29959,-29955,-29953,-29955,-29956,-316,-299,0,-29961,
-29957,-29957,-29957,-29961,-29949,-29957,-29958,-29951,-29957,-29958,-29961,
-29965,-29959,-29960,-29961,-29962,-29963,-29969,-29970,-29969,-29961,-29963,
-29964,-29965,-29954,-29955,-29955,-29962,-29963,-29962,-29965,-29964,-29965,
-29965,-29965,-29961,-29963,-29964,-29965,-29977,-29976,-29975,-29976,-29972,
-29970,-29965,-29961,-29976,-29978,-29978,-29977,-29978,-29979,-29979,-29980,
-29980,-29980,-29980,-29979,-29979,-29979]} 1. e4 {[%emt 0:00:03]} e6 {[%emt 0:
00:00]} 2. d4 {[%emt 0:00:05]} d5 {[%emt 0:00:07]} 3. e5 {[%emt 0:00:05]} c5 {
[%emt 0:00:09]} 4. c3 {[%emt 0:00:07]} Nc6 {[%emt 0:00:28]} 5. Nf3 {[%emt 0:00:
00]} Bd7 {[%emt 0:04:14]} 6. Be2 {[%emt 0:00:08]} Nge7 {[%emt 0:02:44]} 7. O-O
{[%emt 0:00:55]} Ng6 $1 {[%emt 0:09:22] 7...Ng6 is better than 7...Nf5.} 8. Re1
{[%emt 0:01:35]} f6 {[%emt 0:02:36] [#] C02: French: Advance Variation.} (8...
Rc8 $11 {keeps the balance.}) 9. c4 $146 {[%emt 0:06:37]} (9. exf6 $1 $16 {
[%cal Yf6f7] Strongly threatening f7+!} gxf6 10. c4) ({Predecessor:} 9. Bd3 Qb6
10. c4 O-O-O 11. cxd5 Nb4 12. Be3 Nxd5 13. Nbd2 Nxe3 14. fxe3 Bb5 15. Bxb5 Qxb5
16. a4 {1-0 (40) Rivero Ojeda,C (2129)-Tessem,M (1742) Bergen 2003}) 9... fxe5
{[%emt 0:10:28]} 10. cxd5 {[%emt 0:06:33]} Nxd4 {[%emt 0:02:34] The position
is equal.} 11. Bd3 {[%emt 0:05:38]} Nxf3+ {[%emt 0:10:44]} (11... Qf6 $5 {
[%cal Rd4f3]}) 12. Qxf3 {[%emt 0:00:10] Black must now prevent dxe6.} Qf6 {
[%emt 0:00:09]} 13. dxe6 {[%emt 0:03:15]} Bc6 {[%emt 0:01:05]} 14. Qh3 {
[%emt 0:09:57]} Be7 {[%emt 0:09:51]} 15. Nc3 {[%emt 0:01:35]} (15. Bxg6+ Qxg6
16. Qg3 Qxg3 17. hxg3 Bf6 $17) 15... Rf8 {[%emt 0:10:16]} ({Black should play} 
15... O-O $11 16. Be3 Nh4) 16. Be3 $14 {[%emt 0:03:21]} Nf4 {[%emt 0:00:29]}
17. Bxf4 {[%emt 0:00:37]} Qxf4 {[%emt 0:00:08]} 18. Qe3 {[%emt 0:09:15]} (18.
Re2 $14) 18... O-O-O $11 {[%emt 0:06:37][%cal Yd8d3] Threatens to win with ...
Rxd3!} (18... Qg4 19. Be4 $16) 19. Be4 {[%emt 0:17:58]} Bxe4 {[%emt 0:11:28]}
20. Nxe4 {[%emt 0:01:41]} Rd4 {[%emt 0:03:46]} 21. Qxf4 {[%emt 0:02:27]} exf4 {
[%emt 0:01:08]} 22. f3 {[%emt 0:01:15]} b6 {[%emt 0:00:35]} 23. Kf2 {[%emt 0:
00:00]} Kb7 {[%emt 0:03:00]} 24. Re2 {[%emt 0:01:30]} (24. Rad1 $11) 24... Kc6
$15 {[%emt 0:00:26]} 25. g3 {[%emt 0:02:15]} fxg3+ {[%emt 0:01:31]} (25... Rd3
$17 {Hoping for ...fxg3+.} 26. g4 Re8) 26. hxg3 $11 {[%emt 0:00:08]} h5 {
[%emt 0:00:32]} 27. Rh1 {[%emt 0:02:37]} g6 {[%emt 0:02:01]} 28. Kg2 {[%emt 0:
00:00]} Rd3 {[%emt 0:00:40]} 29. Rf1 {[%emt 0:01:10]} b5 {[%emt 0:01:03]} 30.
f4 {[%emt 0:02:11]} Rd5 {[%emt 0:03:02]} 31. Rf3 {[%emt 0:03:26]} a6 {[%emt 0:
00:00]} 32. Rff2 {[%emt 0:04:19]} c4 {[%emt 0:00:53]} 33. g4 {[%emt 0:03:12]}
hxg4 {[%emt 0:01:10] aiming for ...Rh8.} 34. Kg3 $1 {[%emt 0:00:31]} Rh8 $36 {
[%emt 0:00:20] Black has good play.} 35. Rh2 {[%emt 0:00:56] Against Bh4+} (35.
Kxg4 $15 Rh4+ 36. Kg3) 35... Rxh2 $17 {[%emt 0:00:35]} 36. Rxh2 {[%emt 0:00:38]
Endgame KRB-KRN} Rd4 {[%emt 0:01:02]} 37. Re2 {[%emt 0:00:59]} b4 {[%emt 0:01:
06][%cal Yb5b4,Yb4c3]} 38. Kxg4 {[%emt 0:01:04]} Kd5 $1 {[%emt 0:00:14][%csl
Ye4,Ye6]} 39. Ng5 {[%emt 0:03:06]} (39. f5 $15) 39... c3 $19 {[%emt 0:00:28]}
40. bxc3 {[%emt 0:00:45]} bxc3 {[%emt 0:00:07]} 41. Rc2 {[%emt 0:03:23]} Kc4 {
[%emt 0:07:50]} ({Better is} 41... Rc4 $17 {...Kd4 is the strong threat.} 42.
Nf3 Kxe6) 42. Nf3 $2 {[%emt 0:00:00]} (42. Rc1 $1 $15) 42... Re4 $1 {[%emt 0:
00:51]} (42... Rd6 43. f5 $11) 43. Nd2+ $2 {[%emt 0:08:20]} (43. Rc1 Kd3 44.
Rd1+ Kc2 45. Rd7) 43... Kd3 {[%emt 0:00:23]} 44. Rxc3+ {[%emt 0:00:14]} Kxd2 {
[%emt 0:00:31] KRB-KR} 45. Rc6 {[%emt 0:00:17]} a5 {[%emt 0:03:24][%cal Ya6a5,
Ya5a4,Ya4a3] And now ...a4 would win.} 46. Kf3 {[%emt 0:00:22]} Re3+ {[%emt 0:
00:00]} 47. Kg4 {[%emt 0:00:37]} a4 {[%emt 0:02:31]} 48. Rc4 {[%emt 0:00:55]}
a3 {[%emt 0:03:08]} (48... Rxe6 $2 49. Rxa4 Re1 50. Kf3 $19) 49. f5 {[%emt 0:
00:19]} gxf5+ {[%emt 0:03:56]} 50. Kxf5 {[%emt 0:00:06]} Rc3 {[%emt 0:00:49]}
51. Rd4+ {[%emt 0:01:20]} Rd3 {[%emt 0:02:02]} 52. Rc4 {[%emt 0:00:27]} Rf3+ $2
{[%emt 0:03:38]} (52... Re3 {mates} 53. Rc7 Bb4 54. Rc4 Bf8 55. Rc8 Kd3 $1 56.
Rd8+ Kc4 57. Rd2 Bb4 58. Rd1 Re2 59. Rc1+ Kd3 60. Rd1+ Kc3 61. Rc1+ Rc2 62. Re1
Be7 63. Kg6 Rf2 64. Kh5 Rxa2 65. Kg4 Rc2 66. Kg3 a2 67. Kf4 Kb2 68. Ke4 Rc1 69.
Re2+ Kb1 70. Rxa2 Kxa2 71. Kf3 Kb3 72. Kf4 Kc4 73. Ke3 Rd1 74. Kf3 Kd3 75. Kf2
Rc1 76. Kf3 Rf1+ 77. Kg4 Kd4 78. Kg3 Ke3 79. Kg2 Re1 80. Kg3 Rg1+ 81. Kh3 Kf3
82. Kh2 Re1 83. Kh3 Rh1#) 53. Ke4 {[%emt 0:01:26]} Re3+ {[%emt 0:00:35]} (53...
Rf6 $19 54. Ke5 Rf2) 54. Kf5 $1 {[%emt 0:00:21]} Re1 {[%emt 0:01:19] Black
mates.} 55. Rc7 {[%emt 0:00:41]} Bb4 {[%emt 0:00:25]} 56. Kf6 {[%emt 0:04:01]}
Bc3+ {[%emt 0:00:40]} 57. Kf7 {[%emt 0:00:59]} Rf1+ {[%emt 0:01:38]} 58. Ke8 {
[%emt 0:01:02]} Bb4 {[%emt 0:00:44]} (58... Re1 $2 59. Kd7 Bb4 60. Rc4 $19) 59.
Rc4 {[%emt 0:01:10]} Rb1 {[%emt 0:02:05]} 60. Kd7 {[%emt 0:00:26]} Kd3 {
[%emt 0:00:44]} 61. Rh4 {[%emt 0:00:28]} Kc3 {[%emt 0:01:30]} (61... Bf8 62.
Rh8 (62. Rh3+ $2 Kc2 $19) 62... Bc5 63. e7 Bxe7 64. Kxe7 $11) 62. Kc6 {[%emt 0:
00:00]} Rd1 {[%emt 0:01:02]} 63. Kc7 {[%emt 0:03:26]} Rd2 {[%emt 0:00:59]} 64.
Rh3+ {[%emt 0:00:10]} Rd3 {[%emt 0:00:08]} 65. Rh4 {[%emt 0:00:21]} Bd6+ {
[%emt 0:00:32]} 66. Kc6 {[%emt 0:01:13]} Kb2 {[%emt 0:00:28]} 67. Rh7 {[%emt 0:
00:00]} Bb4 {[%emt 0:01:33]} ({Inferior is} 67... Kxa2 68. Rd7 $11) 68. Kb5 {
[%emt 0:00:26] [#]} Rd4 $1 {[%emt 0:00:41]} 69. Rh2+ {[%emt 0:00:18]} Kb1 {
[%emt 0:00:22]} 70. Re2 {[%emt 0:02:31]} Be7 {[%emt 0:00:13]} 71. Kc6 {[%emt 0:
00:00]} Kc1 {[%emt 0:00:21]} 72. Re1+ {[%emt 0:00:56]} Rd1 {[%emt 0:00:15]} 73.
Re3 {[%emt 0:03:39]} Rd2 {[%emt 0:00:42]} 74. Kb5 {[%emt 0:02:04]} Kb2 {
[%emt 0:00:42]} 75. Rf3 {[%emt 0:00:51]} Kxa2 {[%emt 0:01:11]} 76. Rf7 {
[%emt 0:00:08]} Bh4 {[%emt 0:00:34]} 77. Rh7 {[%emt 0:00:39]} Bd8 {[%emt 0:00:
00]} 78. e7 {[%emt 0:00:26] [#]} Bxe7 $1 {[%emt 0:00:03]} 79. Rxe7 {[%emt 0:00:
00] KR-KR} Kb2 {[%emt 0:00:07]} 80. Kc4 {[%emt 0:00:17]} a2 {[%emt 0:00:51]}
81. Rb7+ {[%emt 0:00:17]} Kc1 {[%emt 0:00:16]} 82. Ra7 {[%emt 0:00:16]} Kb1 {
[%emt 0:00:21]} 83. Kc3 {[%emt 0:00:55]} Rc2+ {[%emt 0:00:18]} 84. Kd3 {
[%emt 0:00:09]} Rb2 {[%emt 0:00:09] Weighted Error Value: White=0.63/Black=0.
17 (very precise)} 0-1

[Event "44th Chess Olympiad Women 2022"]
[Site "Chennai"]
[Date "2022.07.30"]
[Round "2.9"]
[White "Danielian, Elina"]
[Black "Machlik, Monika"]
[Result "1-0"]
[WhiteElo "2441"]
[BlackElo "2111"]
[Annotator "TA"]
[PlyCount "69"]
[EventDate "2022.??.??"]
[TimeControl "60"]

{[%evp 15,69,18,36,33,38,38,36,6,2,21,30,30,27,29,27,27,27,24,25,26,27,24,40,
21,19,19,20,21,24,30,37,25,106,104,164,155,268,275,467,458,470,415,595,590,618,
611,624,597,595,562,741,739,850,828,711,666]} 1. d4 {[%emt 0:00:03]} Nf6 {
[%emt 0:00:11]} 2. Nf3 {[%emt 0:00:06]} e6 {[%emt 0:01:37]} 3. e3 {[%emt 0:00:
00]} d5 {[%emt 0:06:39]} 4. c4 {[%emt 0:00:51]} c5 {[%emt 0:03:58]} 5. Nc3 {
[%emt 0:01:43]} dxc4 {[%emt 0:01:09]} 6. Bxc4 {[%emt 0:00:11]} a6 {[%emt 0:00:
00]} 7. Bb3 {[%emt 0:13:06]} Nc6 {[%emt 0:05:44]} 8. O-O {[%emt 0:00:37]} Be7 {
[%emt 0:03:49] 8...cxd4 is not played anymore.} 9. dxc5 {[%emt 0:09:54] D27:
Queen's Gambit Accepted: Classical main line: 7 e4!? and 7 a4.} Qxd1 {[%emt 0:
00:00]} 10. Rxd1 {[%emt 0:00:05]} Bxc5 {[%emt 0:00:13]} 11. Ng5 {[%emt 0:00:50]
White is slightly better.} O-O {[%emt 0:05:09]} 12. Nge4 {[%emt 0:04:52]} Nxe4
{[%emt 0:06:26]} 13. Nxe4 {[%emt 0:00:03]} Be7 {[%emt 0:00:47]} 14. Bd2 {
[%emt 0:00:08]} Rd8 {[%emt 0:14:53]} 15. Rac1 {[%emt 0:01:33]} Bd7 {[%emt 0:00:
00]} 16. Nc5 {[%emt 0:01:06] [#]} Rab8 $146 {[%emt 0:08:33]} ({Predecessor:} 
16... Bxc5 17. Rxc5 Be8 18. f3 Rac8 19. Be1 Rxd1 20. Bxd1 Ne7 21. Rxc8 Nxc8 22.
e4 f6 {1-0 (43) Grigore,G (2542)-Bonte,A (2323) Baia Sprie 2009}) 17. Nxd7 {
[%emt 0:03:09]} Rxd7 {[%emt 0:00:09]} 18. Kf1 {[%emt 0:00:43]} Rbd8 {[%emt 0:
00:00]} 19. Ke2 {[%emt 0:03:41]} Bf6 {[%emt 0:01:12]} 20. Bc3 {[%emt 0:03:00]}
(20. Ba4 {looks sharper.} Bxb2 21. Rc2 Bf6 22. Bxc6 bxc6 23. Rb1) 20... Rxd1 {
[%emt 0:03:47]} 21. Bxd1 {[%emt 0:00:09]} Bxc3 {[%emt 0:02:50]} 22. Rxc3 $11 {
[%emt 0:00:04] Endgame KRB-KRN} Rc8 {[%emt 0:00:16]} 23. Ba4 {[%emt 0:01:45]}
b5 {[%emt 0:07:07]} (23... Ne7 $11) 24. Bc2 $16 {[%emt 0:02:05] Hoping for Be4.
} f5 {[%emt 0:00:23] Inhibits Be4.} (24... Kf8 $16) 25. a4 $18 {[%emt 0:03:35]
[%cal Ya2a4,Ya4a5]} b4 {[%emt 0:05:13]} (25... Kf8 $16 {is a better defense.})
26. Rc5 {[%emt 0:01:39] [#] And now Bd3 would win.} Na7 $2 {[%emt 0:03:41]} (
26... a5 27. Bd3 (27. Bb3 Kf7 $16) 27... Na7 28. Rxa5 Rc7) 27. Rxc8+ {[%emt 0:
00:10]} Nxc8 {[%emt 0:00:01] KB-KN} 28. Kd3 {[%emt 0:01:09]} Nb6 {[%emt 0:00:
24]} (28... Nd6 {was worth a try.} 29. Kd4 Kf7) 29. a5 {[%emt 0:04:56] White
is clearly winning.} Nd5 {[%emt 0:00:28]} 30. Kd4 {[%emt 0:01:26]} Kf7 {
[%emt 0:00:17] [#]} 31. Bxf5 $1 {[%emt 0:04:46]} Ke7 {[%emt 0:01:33]} (31...
Nxe3 32. Bd3) 32. Bd3 {[%emt 0:00:18]} Kd6 {[%emt 0:00:56]} 33. Bxa6 {[%emt 0:
01:13]} Ne7 {[%emt 0:01:22]} 34. Bb7 {[%emt 0:00:39]} Kc7 {[%emt 0:01:26]} 35.
Be4 {[%emt 0:00:28] Weighted Error Value: White=0.03 (flawless) /Black=0.34}
1-0

[Event "44th Chess Olympiad Women 2022"]
[Site "Chennai"]
[Date "2022.07.30"]
[Round "2.11"]
[White "Maklakova, Nellija"]
[Black "Gomes, Mary Ann"]
[Result "0-1"]
[WhiteElo "1819"]
[BlackElo "2324"]
[Annotator "TA"]
[PlyCount "120"]
[EventDate "2022.??.??"]
[TimeControl "60"]

{[%evp 15,120,0,8,-6,7,-12,2,-16,8,-6,0,-9,10,0,13,-9,41,-3,-24,-22,-21,-62,
-60,-70,-64,-106,-93,-91,-106,-240,-225,-216,-222,-367,-358,-321,-310,-415,
-359,-415,-384,-469,-479,-456,-468,-498,-498,-498,-490,-557,-492,-538,-493,
-486,-483,-435,-312,-312,-312,-312,-312,-312,-312,-312,-312,-676,-683,-658,
-312,-671,-652,-544,-641,-589,-536,-12828,-12829,-1462,-737,-12834,-475,-470,
-470,-739,-739,-12837,-12837,-12838,-12839,-12841,-12841,-12843,-12841,-12844,
-12841,-12844,-12844,-12845,-12845,-12846,-12847,-12847,-12847,-12848,-12848,
-12850,-12850]} 1. Nf3 {[%emt 0:00:03]} c5 {[%emt 0:00:48]} 2. e3 {[%emt 0:00:
00]} Nf6 {[%emt 0:03:55]} 3. d4 {[%emt 0:00:56]} g6 {[%emt 0:02:20]} 4. Be2 {
[%emt 0:01:02]} Bg7 {[%emt 0:00:05]} 5. O-O {[%emt 0:00:30]} O-O {[%emt 0:00:
00]} 6. b3 {[%emt 0:04:40]} b6 {[%emt 0:01:51]} 7. Bb2 {[%emt 0:00:50]} Bb7 {
[%emt 0:00:11]} 8. Nbd2 {[%emt 0:01:11]} d6 {[%emt 0:00:55]} 9. Re1 {[%emt 0:
00:00] A48:1 d4 Nf6 2 Nf3 g6: Torre, London and Colle Systems.} Nbd7 {[%emt 0:
00:00] [#]} 10. Rc1 $146 {[%emt 0:05:51]} ({Predecessor:} 10. c4 Re8 11. Qc2 e5
12. dxe5 dxe5 13. Red1 Qc7 14. Nf1 e4 15. Ne1 Ne5 16. Bc3 h5 {0-1 (62) Islam,K
(2253)-Subhayan,K (2185) Dhaka 2018}) 10... Rc8 {[%emt 0:04:35]} 11. Bf1 {
[%emt 0:03:49] The position is equal.} Rc7 {[%emt 0:02:51]} 12. c4 {[%emt 0:00:
00]} e6 {[%emt 0:05:15]} 13. a3 {[%emt 0:03:18]} Qa8 {[%emt 0:02:28]} 14. b4 {
[%emt 0:02:33]} Rd8 {[%emt 0:08:05]} 15. Qb3 {[%emt 0:02:13]} d5 {[%emt 0:00:
00]} (15... cxd4 $11 16. exd4 Bh6) 16. Ne5 {[%emt 0:02:42]} Nxe5 {[%emt 0:00:
00]} 17. dxe5 {[%emt 0:00:08]} Ng4 {[%emt 0:00:15]} 18. f4 {[%emt 0:07:05]} d4
$1 {[%emt 0:00:26]} 19. exd4 {[%emt 0:05:48]} cxd4 {[%emt 0:00:07]} 20. Nf3 {
[%emt 0:16:01]} Bxf3 {[%emt 0:07:16]} 21. gxf3 {[%emt 0:02:06]} Ne3 {[%emt 0:
00:00] Black is more active.} 22. Rxe3 {[%emt 0:07:48] Now White is beyond
hope.} (22. Bxd4 $17 Nxf1 23. Rcd1) 22... dxe3 $19 {[%emt 0:00:07]} 23. Qxe3 {
[%emt 0:00:03]} Rcd7 {[%emt 0:01:43]} 24. c5 {[%emt 0:02:13]} (24. Bc3 $142)
24... bxc5 {[%emt 0:00:28]} 25. bxc5 {[%emt 0:00:19]} Qc6 {[%emt 0:00:37]} 26.
Bc3 {[%emt 0:02:04]} Bf8 {[%emt 0:02:18]} 27. Bb4 {[%emt 0:01:12]} Rd1 {
[%emt 0:08:01]} 28. Rxd1 {[%emt 0:03:32]} Rxd1 {[%emt 0:00:07]} 29. Kg2 {
[%emt 0:00:19]} a5 {[%emt 0:12:18]} 30. Be2 {[%emt 0:02:59]} Ra1 {[%emt 0:00:
00]} ({Don't go for} 30... axb4 $2 31. Bxd1 Qd5 32. Qc1 bxa3 33. c6 $17) 31.
Bxa5 {[%emt 0:02:36]} Bxc5 {[%emt 0:02:27]} 32. Qb3 {[%emt 0:02:37]} Rg1+ {
[%emt 0:00:20]} 33. Kh3 {[%emt 0:00:14]} Qc8 {[%emt 0:00:10] [#] Prevents Qb8.
( -> ...Qf8)} 34. Qd3 {[%emt 0:05:55]} Qf8 {[%emt 0:00:17][%cal Rf8h6]} 35. Qd8
{[%emt 0:00:15]} Qxd8 {[%emt 0:00:07]} 36. Bxd8 {[%emt 0:00:04] A strong pair
of Bishops.} Bxa3 {[%emt 0:00:07] Endgame KRB-KB} 37. Bg5 {[%emt 0:00:00]} Bf8
{[%emt 0:01:24]} 38. Bd3 {[%emt 0:01:02]} h6 {[%emt 0:02:05][%cal Yh7h6,Yh6g5]}
39. Bh4 {[%emt 0:01:21]} Bc5 {[%emt 0:01:59]} 40. Be4 $2 {[%emt 0:01:23]} (40.
Bg3) 40... Be3 {[%emt 0:01:39]} 41. Bg3 {[%emt 0:30:16]} Kg7 {[%emt 0:32:23]} (
41... g5 $142 42. fxg5 hxg5) 42. Bd3 $2 {[%emt 0:00:00]} (42. Kg4) 42... g5 {
[%emt 0:00:00] Black is clearly winning.} 43. fxg5 {[%emt 0:00:00]} hxg5 {
[%emt 0:00:00]} 44. Be4 {[%emt 0:00:00]} Kh6 {[%emt 0:00:00]} 45. Kg4 {[%emt 0:
00:00]} Bf4 {[%emt 0:00:00]} 46. Kh3 {[%emt 0:00:00]} Kh5 {[%emt 0:00:00] [#] .
..Bxg3 is the strong threat.} 47. Bc6 {[%emt 0:00:00]} Rc1 {[%emt 0:00:00]} (
47... Bxg3 $142 48. hxg3 g4+ 49. fxg4+ Kg5) 48. Be8 {[%emt 0:00:00]} Rc7 {
[%emt 0:00:00] Hoping for ...Bxg3.} 49. Ba4 {[%emt 0:00:00]} (49. Bf2 $142)
49... Bxg3 {[%emt 0:00:00]} 50. hxg3 {[%emt 0:00:00] KR-KB} Kg6 {[%emt 0:00:00]
} 51. Be8 {[%emt 0:00:00]} Kf5 {[%emt 0:00:00]} 52. Bb5 {[%emt 0:00:00]} Kxe5 {
[%emt 0:00:00]} 53. Kg4 {[%emt 0:00:00]} f6 {[%emt 0:00:00][%cal Yf7f6,Yf6f5]}
54. Bd3 {[%emt 0:00:00]} Rg7 {[%emt 0:00:00]} 55. Kh5 {[%emt 0:00:00]} f5 {
[%emt 0:00:00]} 56. Kh6 {[%emt 0:00:00]} Kf6 {[%emt 0:00:00]} 57. g4 {[%emt 0:
00:57]} Rd7 {[%emt 0:00:00]} 58. Bb5 {[%emt 0:01:04]} Rd2 {[%emt 0:00:00][%cal
Rd2h2]} 59. Kh7 {[%emt 0:00:21]} fxg4 {[%emt 0:00:00]} 60. fxg4 {[%emt 0:00:20]
} Rg2 {[%emt 0:00:00] Weighted Error Value: White=0.90/ Black=0.35} 0-1

[Event "44th Chess Olympiad Women 2022"]
[Site "Chennai"]
[Date "2022.07.30"]
[Round "2.11"]
[White "Soumya, Swaminathan"]
[Black "Ter-Avetisjana, Agnesa Stepania"]
[Result "1-0"]
[WhiteElo "2335"]
[BlackElo "1962"]
[Annotator "TA"]
[PlyCount "154"]
[EventDate "2022.??.??"]
[TimeControl "60"]

{[%evp 9,154,5,6,7,20,6,6,12,33,0,-2,-2,11,17,12,18,18,6,6,0,0,0,0,0,0,-11,0,
-15,0,-10,0,0,14,7,106,100,76,98,111,90,93,96,106,84,120,95,98,98,94,100,93,97,
94,96,109,46,30,21,76,73,76,77,87,90,110,110,121,115,118,72,89,72,70,72,72,74,
78,13,13,16,16,22,23,23,70,0,0,0,0,0,0,0,0,0,38,45,70,0,0,0,0,0,0,0,0,2,9,9,23,
23,24,24,53,60,67,67,12848,12848,12849,12849,12850,12850,12850,27999,27999,
27999,27999,27999,27999,27999,27999,27999,27995,27995,27996,27996,27997,27997,
27998,27997,27998,27997,27998,27998,27999,27999,27999]} 1. e4 {[%emt 0:00:03]}
c6 {[%emt 0:00:07]} 2. d4 {[%emt 0:00:03]} d5 {[%emt 0:00:04]} 3. e5 {[%emt 0:
00:00]} Bf5 {[%emt 0:00:05]} 4. c4 {[%emt 0:00:14]} e6 {[%emt 0:00:11]} 5. Nc3
{[%emt 0:00:15]} Nd7 {[%emt 0:00:16]} 6. h3 {[%emt 0:00:42] B12: Caro-Kann:
Advance Variation.} h6 {[%emt 0:04:02]} 7. Nf3 {[%emt 0:00:30]} Ne7 {[%emt 0:
00:00]} 8. a3 {[%emt 0:01:43] The position is equal.} a5 {[%emt 0:01:27] [#]}
9. Be2 $146 {[%emt 0:10:42]} ({Predecessor:} 9. Nh4 Bh7 10. Bd3 Bxd3 11. Qxd3
dxc4 12. Qxc4 Nd5 13. Nf3 Be7 14. Nxd5 cxd5 15. Qb3 {½-½ (32) Salinas,E (723)
-Raines,D (898) LSS email 2014}) 9... dxc4 {[%emt 0:06:41]} 10. Bxc4 {[%emt 0:
00:00]} Nb6 {[%emt 0:01:35]} 11. Bd3 {[%emt 0:01:26]} Bxd3 {[%emt 0:03:20]} 12.
Qxd3 {[%emt 0:00:05]} Ned5 {[%emt 0:00:56]} 13. Ne4 {[%emt 0:05:35]} Be7 {
[%emt 0:05:55]} 14. O-O {[%emt 0:00:29]} Nd7 {[%emt 0:05:48]} 15. Bd2 {[%emt 0:
00:00]} O-O {[%emt 0:03:55]} 16. Rfc1 {[%emt 0:17:02]} Qb6 {[%emt 0:07:27]} 17.
Qc4 {[%emt 0:02:23]} Rfd8 {[%emt 0:08:44]} (17... Qxb2 $2 18. Rcb1 b5 19. Qd3 (
19. Rxb2 bxc4 20. Rc2 N7b6 $17) 19... Qxa1 20. Rxa1 $18) 18. Ne1 {[%emt 0:00:
00][%cal Yf3e1,Ye1d3,Yd3f4,Yf4g6]} Qa6 {[%emt 0:09:33]} ({Don't take} 18...
Qxb2 19. Rcb1 b5 20. Qd3 (20. Rxb2 bxc4 21. Rc2 c5 $17) 20... Nxe5 21. dxe5 (
21. Rxb2 Nxd3 22. Nxd3 Nf6 $14) 21... Qxe5 22. Qc2 $14 (22. Nf3 Qc7 $14)) 19.
Qb3 {[%emt 0:08:34]} Rac8 {[%emt 0:07:41]} 20. Qg3 {[%emt 0:00:45] Strongly
threatening Bxh6.} Kh8 {[%emt 0:03:49]} 21. Nd3 {[%emt 0:01:28]} f5 {[%emt 0:
08:28]} (21... Qa7 $11) 22. exf6 {[%emt 0:03:55]} N5xf6 {[%emt 0:01:05]} 23.
Re1 {[%emt 0:04:30][%cal Yc1e1,Ye1e4,Ye4e5] Threatens to win with Nxf6.} c5 {
[%emt 0:06:40]} 24. Nf4 {[%emt 0:01:49] aiming for Ng6+. 0x0.
0024b81d1a63dp-1022s more active pieces.} Nf8 {[%emt 0:05:02]} 25. Ng6+ {
[%emt 0:08:52]} Nxg6 {[%emt 0:00:10]} 26. Qxg6 {[%emt 0:00:10][%cal Yd2h6]
Black must now prevent Bxh6!} Nxe4 {[%emt 0:07:35]} 27. Rxe4 {[%emt 0:00:15]
[%cal Yd2h6] Hoping for Bxh6!} e5 {[%emt 0:00:48]} (27... Bf6 $2 {[#]} 28. Bxh6
$1 Rxd4 29. Rxe6 $3 $18) 28. Qxa6 {[%emt 0:00:24]} bxa6 {[%emt 0:00:01]} 29.
Bxa5 {[%emt 0:00:15]} Rxd4 {[%emt 0:00:40]} 30. Rxe5 {[%emt 0:00:03]} Bf6 {
[%emt 0:00:52]} 31. Re3 {[%emt 0:04:46]} Rc4 {[%emt 0:00:00]} 32. b3 {[%emt 0:
04:56]} (32. Bc3 $16) 32... Rc2 $14 {[%emt 0:00:51]} 33. Rae1 {[%emt 0:00:43]}
Bd4 {[%emt 0:00:28]} (33... Bb2 $11) 34. R3e2 $16 {[%emt 0:01:32]} Rxe2 {
[%emt 0:00:15]} 35. Rxe2 {[%emt 0:00:01] Endgame KRB-KRB} Rb8 {[%emt 0:00:30]}
36. b4 {[%emt 0:00:22]} Bc3 {[%emt 0:00:00]} 37. Re4 {[%emt 0:00:43]} Kg8 {
[%emt 0:00:25]} 38. Rc4 {[%emt 0:00:25]} cxb4 {[%emt 0:00:26]} 39. axb4 {
[%emt 0:00:08]} (39. Bxb4 $142 Bb2 40. Kf1) 39... Bd2 {[%emt 0:00:20]} 40. Rd4
{[%emt 0:02:02]} Bc3 {[%emt 0:00:14]} 41. Re4 {[%emt 0:30:33]} Kf7 {[%emt 0:30:
34]} 42. Kf1 {[%emt 0:01:06]} Re8 {[%emt 0:00:45]} 43. Rxe8 {[%emt 0:00:00]} (
43. Rf4+ $16 Kg6 44. g3) 43... Kxe8 {[%emt 0:00:00] KB-KB} 44. Ke2 {[%emt 0:00:
00]} Kd7 {[%emt 0:00:00]} 45. Kd3 {[%emt 0:00:00]} Be1 {[%emt 0:00:00]} 46. f3
{[%emt 0:00:00]} h5 {[%emt 0:00:00]} (46... Bf2 $11 {should be considered.})
47. g4 {[%emt 0:05:34]} (47. Kc4 $14) 47... hxg4 $11 {[%emt 0:00:00]} 48. hxg4
{[%emt 0:00:00]} Kd6 {[%emt 0:00:00]} 49. Kc4 {[%emt 0:00:00]} Bf2 {[%emt 0:01:
05]} 50. Bd8 {[%emt 0:00:00]} Be3 {[%emt 0:02:40]} 51. Bh4 {[%emt 0:00:00]} Bd2
{[%emt 0:00:58]} 52. Bg3+ {[%emt 0:00:00]} Kc6 {[%emt 0:00:26]} 53. f4 {
[%emt 0:00:00]} ({White should play} 53. Be5 $14 g6 54. f4) 53... g6 {[%emt 0:
00:32]} 54. f5 {[%emt 0:00:00]} gxf5 {[%emt 0:00:03]} 55. gxf5 {[%emt 0:00:00]}
Bh6 {[%emt 0:01:04]} 56. Be5 {[%emt 0:00:00]} Kd7 {[%emt 0:00:22]} 57. Kd5 {
[%emt 0:00:00]} Bf8 {[%emt 0:00:00]} 58. Bc3 {[%emt 0:00:00]} Ke7 {[%emt 0:00:
42]} 59. Kc5 {[%emt 0:00:00]} Kf7+ $1 {[%emt 0:00:06]} 60. Kc4 {[%emt 0:00:00]}
Be7 {[%emt 0:00:55]} 61. Kb3 $1 {[%emt 0:00:00]} Bf8 {[%emt 0:00:19]} 62. Ka4 {
[%emt 0:00:00]} Be7 $2 {[%emt 0:00:15] This move loses the game for Black.} (
62... Bd6 $14) 63. Ka5 $18 {[%emt 0:00:00]} Bf8 {[%emt 0:00:08]} 64. Bd4 {
[%emt 0:00:00]} Bd6 {[%emt 0:01:21]} 65. Bc5 {[%emt 0:00:06]} Bc7+ {[%emt 0:00:
25]} 66. Kxa6 {[%emt 0:00:25]} Kf6 {[%emt 0:00:26] White mates.} 67. Kb7 {
[%emt 0:00:03]} Be5 {[%emt 0:00:34]} 68. Kc6 {[%emt 0:03:54]} Kxf5 {[%emt 0:00:
34]} 69. b5 {[%emt 0:00:18][%cal Yb4b5,Yb5b6,Yb6b7]} Ke6 {[%emt 0:00:22]} 70.
b6 {[%emt 0:00:02]} Bb8 {[%emt 0:00:36]} 71. b7 {[%emt 0:00:13]} Ke5 {[%emt 0:
00:00]} 72. Bb6 {[%emt 0:00:10]} Ke6 {[%emt 0:00:13]} 73. Bc7 {[%emt 0:00:03]}
Ba7 {[%emt 0:00:04]} 74. Bd6 {[%emt 0:00:11]} Kf7 {[%emt 0:00:22]} 75. Kd7 {
[%emt 0:00:15]} Kf6 {[%emt 0:00:08]} 76. Kc8 {[%emt 0:00:05]} Ke6 {[%emt 0:00:
00]} 77. Bc5 {[%emt 0:00:07]} Kd5 {[%emt 0:00:11] Weighted Error Value:
White=0.11 (very precise) /Black=0.12 (very precise)} 1-0